fUST/lending_fUST_20250903
["ID","MTS","AMOUNT","RATE_DAILY","PERIOD"]
[383250777,1756893056077,-280.38556495,0.0001452,2]
[383250778,1756893056086,-480.0,0.0001452,2]
[383250779,1756893056097,-480.0,0.0001452,2]
[383250780,1756893056106,-480.0,0.0001452,2]
[383250781,1756893056116,-480.0,0.0001452,2]
[383250782,1756893056125,-306.22,0.0001452,2]
[383250783,1756893056135,-480.0,0.0001452,2]
[383250784,1756893056144,-797.0,0.0001452,2]
[383250785,1756893056154,-764.72787776,0.00014521,2]
[383250786,1756893056163,-1000.0,0.00014521,2]
[383250787,1756893056173,-757.92581506,0.00014521,2]
[383250788,1756893056183,-1000.0,0.00014521,2]
[383250789,1756893056192,-1000.0,0.00014521,2]
[383250790,1756893056201,-1000.0,0.00014521,2]
[383250791,1756893056211,-600.0,0.00014531,2]
[383250792,1756893056220,-414.0,0.00014535,2]
[383250793,1756893056230,-414.0,0.00014587,2]
[383250794,1756893056239,-500.0,0.00014652,2]
[383250795,1756893056250,-177.590131,0.0001466,7]
[383250796,1756893056260,-501.17314344,0.00014768,2]
[383250797,1756893056270,-292.92441387,0.00014768,2]
[383250798,1756893056279,-1000.0,0.00014768,2]
[383250799,1756893056289,-1000.0,0.00014768,2]
[383250800,1756893056299,-1500.0,0.00014768,2]
[383250801,1756893056308,-414.0,0.00014776,2]
[383250802,1756893056318,-500.0,0.00014794,2]
[383250803,1756893056327,-198.0,0.00014794,2]
[383250804,1756893056336,-480.0,0.00014794,2]
[383250805,1756893056346,-344.74467507,0.00014794,2]
[383250806,1756893056355,-480.0,0.00014794,2]
[383250807,1756893056364,-524.32,0.00014794,2]
[383250808,1756893056374,-485.52,0.00014794,2]
[383250809,1756893056383,-480.0,0.00014794,2]
[383250810,1756893056392,-593.19,0.00014794,2]
[383250811,1756893056401,-176.63,0.00014794,2]
[383250812,1756893056411,-480.0,0.00014794,2]
[383250813,1756893056421,-480.0,0.00014794,2]
[383250814,1756893056430,-480.0,0.00014794,2]
[383250815,1756893056440,-480.0,0.00014794,2]
[383250816,1756893056449,-150.36,0.00014794,2]
[383250817,1756893056460,-480.0,0.00014794,2]
[383250818,1756893056469,-480.0,0.00014794,2]
[383250819,1756893056479,-398.72507251,0.00014794,2]
[383250820,1756893056489,-480.0,0.00014794,2]
[383250821,1756893056498,-480.0,0.00014794,2]
[383250822,1756893056509,-480.0,0.00014794,2]
[383250823,1756893056521,-198.04,0.00014794,2]
[383250824,1756893056530,-480.0,0.00014794,2]
[383250825,1756893056539,-480.0,0.00014794,2]
[383250826,1756893056549,-343.03,0.00014794,2]
[383250827,1756893056559,-398.05,0.00014794,2]
[383250828,1756893056568,-480.0,0.00014794,2]
[383250829,1756893056577,-480.0,0.00014794,2]
[383250830,1756893056587,-480.0,0.00014794,2]
[383250831,1756893056599,-480.0,0.00014794,2]
[383250832,1756893056609,-480.0,0.00014794,2]
[383250833,1756893056618,-480.0,0.00014794,2]
[383250834,1756893056627,-480.0,0.00014794,2]
[383250835,1756893056638,-480.0,0.00014794,2]
[383250836,1756893056648,-480.0,0.00014794,2]
[383250837,1756893056657,-480.0,0.00014794,2]
[383250838,1756893056667,-397.5718485,0.00014794,2]
[383250839,1756893056676,-480.0,0.00014794,2]
[383250840,1756893056686,-480.0,0.00014794,2]
[383250841,1756893056695,-480.0,0.00014794,2]
[383250842,1756893056705,-480.0,0.00014794,2]
[383250843,1756893056715,-480.0,0.00014794,2]
[383250844,1756893056724,-480.0,0.00014794,2]
[383250845,1756893056733,-480.0,0.00014794,2]
[383250846,1756893056743,-275.67520968,0.00014794,2]
[383250847,1756893056752,-480.0,0.00014794,2]
[383250848,1756893056761,-480.0,0.00014794,2]
[383250849,1756893056770,-480.0,0.00014794,2]
[383250850,1756893056779,-187.36,0.00014794,2]
[383250851,1756893056788,-480.0,0.00014794,2]
[383250852,1756893056798,-480.0,0.00014794,2]
[383250853,1756893056897,-522.5,0.00014794,2]
[383250854,1756893056906,-480.0,0.00014794,2]
[383250855,1756893056916,-480.0,0.00014794,2]
[383250856,1756893056925,-480.0,0.00014794,2]
[383250857,1756893056934,-482.25,0.00014794,2]
[383250858,1756893056944,-480.0,0.00014794,2]
[383250859,1756893056953,-480.0,0.00014794,2]
[383250860,1756893056962,-480.0,0.00014794,2]
[383250861,1756893056972,-583.85,0.00014794,2]
[383250862,1756893056981,-278.62500603,0.00014794,2]
[383250863,1756893056990,-480.0,0.00014794,2]
[383250864,1756893056999,-480.0,0.00014794,2]
[383250865,1756893057008,-2291.91,0.00014794,2]
[383250866,1756893057018,-480.0,0.00014794,2]
[383250867,1756893057027,-507.22,0.00014794,2]
[383250868,1756893057037,-480.0,0.00014794,2]
[383250869,1756893057046,-948.07,0.00014794,2]
[383250870,1756893057056,-480.0,0.00014794,2]
[383250871,1756893057066,-663.95,0.00014794,2]
[383250872,1756893057076,-480.0,0.00014794,2]
[383250873,1756893057085,-480.0,0.00014794,2]
[383250874,1756893057095,-480.0,0.00014794,2]
[383250875,1756893057104,-709.82,0.00014794,2]
[383250876,1756893057113,-480.0,0.00014794,2]
[383250877,1756893057123,-480.0,0.00014794,2]
[383250878,1756893057132,-480.0,0.00014794,2]
[383250879,1756893057141,-480.0,0.00014794,2]
[383250880,1756893057151,-480.0,0.00014794,2]
[383250881,1756893057160,-480.0,0.00014794,2]
[383250882,1756893057169,-480.0,0.00014794,2]
[383250883,1756893057179,-1031.19,0.00014794,2]
[383250884,1756893057188,-480.0,0.00014794,2]
[383250885,1756893057198,-480.0,0.00014794,2]
[383250886,1756893057207,-480.0,0.00014794,2]
[383250887,1756893057216,-480.0,0.00014794,2]
[383250888,1756893057226,-713.22,0.00014794,2]
[383250889,1756893057235,-480.0,0.00014794,2]
[383250890,1756893057244,-480.0,0.00014794,2]
[383250891,1756893057254,-480.0,0.00014794,2]
[383250892,1756893057263,-2481.59,0.00014794,2]
[383250893,1756893057272,-603.69,0.00014794,2]
[383250894,1756893057281,-480.0,0.00014794,2]
[383250895,1756893057291,-1229.25,0.00014794,2]
[383250896,1756893057301,-1349.78,0.00014794,2]
[383250897,1756893057310,-480.0,0.00014794,2]
[383250898,1756893057319,-346.44504724,0.00014794,2]
[383250899,1756893057329,-480.0,0.00014794,2]
[383250900,1756893057338,-480.0,0.00014794,2]
[383250901,1756893057347,-480.0,0.00014794,2]
[383250902,1756893057357,-480.0,0.00014794,2]
[383250903,1756893057366,-480.0,0.00014794,2]
[383250904,1756893057375,-480.0,0.00014794,2]
[383250905,1756893057384,-480.0,0.00014794,2]
[383250906,1756893057393,-480.0,0.00014794,2]
[383250907,1756893057403,-480.0,0.00014794,2]
[383250908,1756893057412,-480.0,0.00014794,2]
[383250909,1756893057421,-480.0,0.00014794,2]
[383250910,1756893057430,-2512.98,0.00014794,2]
[383250911,1756893057439,-684.85,0.00014794,2]
[383250912,1756893057448,-480.0,0.00014794,2]
[383250913,1756893057457,-480.0,0.00014794,2]
[383250914,1756893057467,-480.0,0.00014794,2]
[383250915,1756893057476,-156.89,0.00014794,2]
[383250916,1756893057485,-511.96,0.00014794,2]
[383250917,1756893057494,-480.0,0.00014794,2]
[383250918,1756893057504,-480.0,0.00014794,2]
[383250919,1756893057516,-1557.9,0.00014794,2]
[383250920,1756893057526,-480.0,0.00014794,2]
[383250921,1756893057535,-480.0,0.00014794,2]
[383250922,1756893057544,-1328.61,0.00014794,2]
[383250923,1756893057554,-569.74,0.00014794,2]
[383250924,1756893057563,-480.0,0.00014794,2]
[383250925,1756893057574,-480.0,0.00014794,2]
[383250926,1756893057584,-480.0,0.00014794,2]
[383250927,1756893057597,-480.0,0.00014794,2]
[383250928,1756893057606,-660.32,0.00014794,2]
[383250929,1756893057615,-480.0,0.00014794,2]
[383250930,1756893057624,-757.47,0.00014794,2]
[383250931,1756893057633,-480.0,0.00014794,2]
[383250932,1756893057643,-480.0,0.00014794,2]
[383250933,1756893057652,-480.0,0.00014794,2]
[383250934,1756893057662,-1122.69,0.00014794,2]
[383250935,1756893057671,-480.0,0.00014794,2]
[383250936,1756893057681,-480.0,0.00014794,2]
[383250937,1756893057690,-480.0,0.00014794,2]
[383250938,1756893057699,-480.0,0.00014794,2]
[383250939,1756893057709,-480.0,0.00014794,2]
[383250940,1756893057719,-480.0,0.00014794,2]
[383250941,1756893057728,-480.0,0.00014794,2]
[383250942,1756893057737,-480.0,0.00014794,2]
[383250943,1756893057746,-797.0,0.00014794,2]
[383250944,1756893057755,-1000.0,0.00014821,2]
[383250945,1756893057765,-1089.00479967,0.00014821,2]
[383250946,1756893057774,-1000.0,0.00014821,2]
[383250947,1756893057783,-1000.0,0.00014821,2]
[383250948,1756893057793,-1000.0,0.00014821,2]
[383250949,1756893057802,-1000.0,0.00014821,2]
[383250950,1756893057812,-1000.0,0.00014821,2]
[383250951,1756893057820,-733.98107139,0.00014821,2]
[383250952,1756893057830,-1000.0,0.00014821,2]
[383250953,1756893057839,-1000.0,0.00014821,2]
[383250954,1756893057848,-1000.0,0.00014821,2]
[383250955,1756893057857,-1000.95588904,0.00014821,2]
[383250956,1756893057867,-1000.0,0.00014821,2]
[383250957,1756893057876,-1000.0,0.00014821,2]
[383250958,1756893057886,-500.20145994,0.00014821,2]
[383250959,1756893057895,-507.62637185,0.00014821,2]
[383250960,1756893057905,-1000.0,0.00014821,2]
[383250961,1756893057914,-501.22052583,0.00014821,2]
[383250962,1756893057924,-1000.0,0.00014821,2]
[383250963,1756893057933,-173.17695896,0.00014821,2]
[383250964,1756893057943,-155.15865925,0.00014821,2]
[383250965,1756893057952,-829.89598366,0.00014821,2]
[383250966,1756893057970,-170.10401634,0.00014821,2]
[383250967,1756893057979,-841.53309372,0.00014821,2]
[383250968,1756893057991,-158.46690628,0.00014821,2]
[383250969,1756893058001,-531.84434162,0.00014821,2]
[383250970,1756893058055,-160.0,0.00013798,2]
[383250971,1756893058064,-468.15565838,0.00014821,2]
[383250972,1756893058074,-901.70826522,0.00014821,2]
[383250973,1756893058083,-1000.0,0.00014821,2]
[383250974,1756893058093,-1000.0,0.00014821,2]
[383250975,1756893058102,-1000.0,0.00014821,2]
[383250976,1756893058112,-1000.0,0.00014821,2]
[383250977,1756893058121,-566.48013288,0.00014821,2]
[383250978,1756893058131,-1000.0,0.00014821,2]
[383250979,1756893058140,-1000.0,0.00014821,2]
[383250980,1756893058150,-1000.0,0.00014821,2]
[383250981,1756893058159,-1000.0,0.00014821,2]
[383250982,1756893058168,-1000.0,0.00014821,2]
[383250983,1756893058177,-1000.0,0.00014821,2]
[383250984,1756893058186,-1000.0,0.00014821,2]
[383250985,1756893058195,-1000.0,0.00014821,2]
[383250986,1756893058204,-507.59050948,0.00014821,2]
[383250987,1756893058214,-1000.0,0.00014821,2]
[383250988,1756893058223,-1000.0,0.00014821,2]
[383250989,1756893058232,-233.69900493,0.00014864,2]
[383250990,1756893058242,-151.0,0.000149,2]
[383250991,1756893058251,-177.590131,0.000149,2]
[383250992,1756893058260,-503.91260042,0.000149,2]
[383250993,1756893058269,-177.590131,0.0001492,7]
[383250994,1756893058279,-160.0,0.00015,2]
[383250995,1756893058288,-417.15472785,0.00015005,2]
[383250996,1756893058297,-217.50314573,0.00015005,2]
[383250997,1756893058307,-500.0,0.00015063,2]
[383250998,1756893058316,-500.0,0.00015063,2]
[383250999,1756893058325,-500.0,0.00015063,2]
[383251000,1756893058335,-500.0,0.00015068,2]
[383251001,1756893058344,-150.0,0.00015068,2]
[383251002,1756893058354,-281.25,0.00015068,2]
[383251003,1756893058363,-480.0,0.00015068,2]
[383251004,1756893058372,-480.0,0.00015068,2]
[383251005,1756893058382,-480.0,0.00015068,2]
[383251006,1756893058391,-458.80408292,0.00015068,2]
[383251007,1756893058401,-480.0,0.00015068,2]
[383251008,1756893058410,-480.0,0.00015068,2]
[383251009,1756893058420,-480.0,0.00015068,2]
[383251010,1756893058429,-480.0,0.00015068,2]
[383251011,1756893058438,-480.0,0.00015068,2]
[383251012,1756893058447,-480.0,0.00015068,2]
[383251013,1756893058457,-480.0,0.00015068,2]
[383251014,1756893058468,-480.0,0.00015068,2]
[383251015,1756893058477,-480.0,0.00015068,2]
[383251016,1756893058486,-480.0,0.00015068,2]
[383251017,1756893058495,-480.0,0.00015068,2]
[383251018,1756893058505,-542.06,0.00015068,2]
[383251019,1756893058514,-480.0,0.00015068,2]
[383251020,1756893058524,-393.66,0.00015068,2]
[383251021,1756893058616,-480.0,0.00015068,2]
[383251022,1756893058625,-480.0,0.00015068,2]
[383251023,1756893058635,-480.0,0.00015068,2]
[383251024,1756893058644,-251.89380878,0.00015068,2]
[383251025,1756893058653,-480.0,0.00015068,2]
[383251026,1756893058664,-480.0,0.00015068,2]
[383251027,1756893058673,-480.0,0.00015068,2]
[383251028,1756893058683,-480.0,0.00015068,2]
[383251029,1756893058692,-377.72,0.00015068,2]
[383251030,1756893058702,-243.59,0.00015068,2]
[383251031,1756893058711,-495.35,0.00015068,2]
[383251032,1756893058720,-480.0,0.00015068,2]
[383251033,1756893058730,-480.0,0.00015068,2]
[383251034,1756893058739,-213.44,0.00015068,2]
[383251035,1756893058748,-480.0,0.00015068,2]
[383251036,1756893058758,-480.0,0.00015068,2]
[383251037,1756893058767,-482.25,0.00015068,2]
[383251038,1756893058776,-480.0,0.00015068,2]
[383251039,1756893058787,-480.0,0.00015068,2]
[383251040,1756893058796,-480.0,0.00015068,2]
[383251041,1756893058806,-480.0,0.00015068,2]
[383251042,1756893058815,-2291.91,0.00015068,2]
[383251043,1756893058825,-480.0,0.00015068,2]
[383251044,1756893058834,-948.07,0.00015068,2]
[383251045,1756893058844,-663.95,0.00015068,2]
[383251046,1756893058853,-480.0,0.00015068,2]
[383251047,1756893058862,-185.3,0.00015068,2]
[383251048,1756893058871,-709.82,0.00015068,2]
[383251049,1756893058881,-480.0,0.00015068,2]
[383251050,1756893058890,-480.0,0.00015068,2]
[383251051,1756893058899,-303.94,0.00015068,2]
[383251052,1756893058908,-480.0,0.00015068,2]
[383251053,1756893058918,-480.0,0.00015068,2]
[383251054,1756893058927,-480.0,0.00015068,2]
[383251055,1756893058936,-1031.19,0.00015068,2]
[383251056,1756893058945,-480.0,0.00015068,2]
[383251057,1756893058955,-480.0,0.00015068,2]
[383251058,1756893058964,-480.0,0.00015068,2]
[383251059,1756893058974,-480.0,0.00015068,2]
[383251060,1756893058983,-713.22,0.00015068,2]
[383251061,1756893058993,-310.34,0.00015068,2]
[383251062,1756893059002,-480.0,0.00015068,2]
[383251063,1756893059012,-480.0,0.00015068,2]
[383251064,1756893059021,-2481.59,0.00015068,2]
[383251065,1756893059031,-530.04951686,0.00015068,2]
[383251066,1756893059040,-1229.25,0.00015068,2]
[383251067,1756893059051,-1349.78,0.00015068,2]
[383251068,1756893059060,-591.8,0.00015068,2]
[383251069,1756893059070,-480.0,0.00015068,2]
[383251070,1756893059079,-480.0,0.00015068,2]
[383251071,1756893059089,-480.0,0.00015068,2]
[383251072,1756893059098,-480.0,0.00015068,2]
[383251073,1756893059108,-480.0,0.00015068,2]
[383251074,1756893059117,-480.0,0.00015068,2]
[383251075,1756893059127,-480.0,0.00015068,2]
[383251076,1756893059136,-480.0,0.00015068,2]
[383251077,1756893059145,-480.0,0.00015068,2]
[383251078,1756893059155,-480.0,0.00015068,2]
[383251079,1756893059164,-480.0,0.00015068,2]
[383251080,1756893059173,-2512.98,0.00015068,2]
[383251081,1756893059182,-684.85,0.00015068,2]
[383251082,1756893059192,-480.0,0.00015068,2]
[383251083,1756893059201,-480.0,0.00015068,2]
[383251084,1756893059211,-480.0,0.00015068,2]
[383251085,1756893059220,-480.0,0.00015068,2]
[383251086,1756893059230,-511.96,0.00015068,2]
[383251087,1756893059240,-480.0,0.00015068,2]
[383251088,1756893059249,-1557.9,0.00015068,2]
[383251089,1756893059259,-164.14,0.00015068,2]
[383251090,1756893059269,-1328.61,0.00015068,2]
[383251091,1756893059278,-569.74,0.00015068,2]
[383251092,1756893059288,-591.96,0.00015068,2]
[383251093,1756893059297,-480.0,0.00015068,2]
[383251094,1756893059307,-480.0,0.00015068,2]
[383251095,1756893059316,-660.32,0.00015068,2]
[383251096,1756893059326,-480.0,0.00015068,2]
[383251097,1756893059335,-757.47,0.00015068,2]
[383251098,1756893059344,-526.04,0.00015068,2]
[383251099,1756893059353,-480.0,0.00015068,2]
[383251100,1756893059363,-480.0,0.00015068,2]
[383251101,1756893059372,-1122.69,0.00015068,2]
[383251102,1756893059381,-480.0,0.00015068,2]
[383251103,1756893059390,-554.24,0.00015068,2]
[383251104,1756893059399,-480.0,0.00015068,2]
[383251105,1756893059408,-480.0,0.00015068,2]
[383251106,1756893059417,-480.0,0.00015068,2]
[383251107,1756893059427,-480.0,0.00015068,2]
[383251108,1756893059435,-480.0,0.00015068,2]
[383251109,1756893059445,-797.0,0.00015068,2]
[383251110,1756893059453,-500.0,0.00015068,2]
[383251111,1756893059463,-500.0,0.00015068,2]
[383251112,1756893059473,-1500.0,0.00015068,2]
[383251113,1756893059482,-203.3243414,0.00015095,5]
[383251114,1756893059491,-177.590131,0.00015179,7]
[383251115,1756893059500,-1912.18248271,0.00015316,2]
[383251116,1756893059510,-500.0,0.00015342,2]
[383251117,1756893059521,-443.87,0.00015342,2]
[383251118,1756893059530,-480.0,0.00015342,2]
[383251119,1756893059540,-480.0,0.00015342,2]
[383251120,1756893059550,-480.0,0.00015342,2]
[383251121,1756893059559,-480.0,0.00015342,2]
[383251122,1756893059569,-480.0,0.00015342,2]
[383251123,1756893059578,-480.0,0.00015342,2]
[383251124,1756893059588,-480.0,0.00015342,2]
[383251125,1756893059598,-480.0,0.00015342,2]
[383251126,1756893059607,-480.0,0.00015342,2]
[383251127,1756893059616,-480.0,0.00015342,2]
[383251128,1756893059626,-480.0,0.00015342,2]
[383251129,1756893059635,-480.0,0.00015342,2]
[383251130,1756893059644,-480.0,0.00015342,2]
[383251131,1756893059654,-480.0,0.00015342,2]
[383251132,1756893059663,-480.0,0.00015342,2]
[383251133,1756893059674,-480.0,0.00015342,2]
[383251134,1756893059683,-480.0,0.00015342,2]
[383251135,1756893059692,-181.02,0.00015342,2]
[383251136,1756893059702,-480.0,0.00015342,2]
[383251137,1756893059711,-604.47,0.00015342,2]
[383251138,1756893059720,-389.51,0.00015342,2]
[383251139,1756893059729,-482.25,0.00015342,2]
[383251140,1756893059739,-480.0,0.00015342,2]
[383251141,1756893059753,-480.0,0.00015342,2]
[383251142,1756893059762,-480.0,0.00015342,2]
[383251143,1756893059771,-480.0,0.00015342,2]
[383251144,1756893059780,-2291.91,0.00015342,2]
[383251145,1756893059789,-214.07,0.00015342,2]
[383251146,1756893059798,-436.93494516,0.00015342,2]
[383251147,1756893129225,504.62,0.00012329,2]
[383251148,1756893138086,245.59987893,0.00012996,2]
[383251149,1756893139869,420.52,0.00012329,2]
[383251150,1756893150572,350.43,0.00012329,2]
[383251151,1756893153419,500.0,0.00013397,2]
[383251152,1756893153469,500.0,0.00013397,2]
[383251153,1756893153543,500.0,0.00013397,2]
[383251154,1756893153611,500.0,0.00013397,2]
[383251155,1756893153675,500.0,0.00013397,2]
[383251156,1756893153775,233.58353173,0.00013397,2]
[383251157,1756893154021,500.0,0.00013397,2]
[383251158,1756893154190,500.0,0.00013397,2]
[383251159,1756893154224,500.0,0.00013397,2]
[383251160,1756893154740,500.0,0.00013397,2]
[383251161,1756893160997,292.03,0.00012329,2]
[383251162,1756893170599,500.0,0.00013397,2]
[383251163,1756893170752,500.0,0.00013397,2]
[383251164,1756893170864,463.50847221,0.00013397,2]
[383251165,1756893171625,243.36,0.00012329,2]
[383251166,1756893182054,202.8,0.00012329,2]
[383251167,1756893182780,300.0,0.00013397,2]
[383251168,1756893192477,169.0,0.00012329,2]
[383251169,1756893203590,845.0,0.00012329,2]
[383251170,1756893230080,200.85604779,0.00029728,60]
[383251175,1756893301320,229.55811713,0.00013298,2]
[383251176,1756893301341,2152.50879611,0.00013298,2]
[383251177,1756893309264,1200.0,0.00013397,2]
[383251178,1756893544237,469.64810484,0.000132,2]
[383251180,1756893561810,2084.30854912,0.00013298,2]
[383251186,1756893822240,1823.76998048,0.00013298,2]
[383251231,1756894031865,1001.90916686,0.00013397,2]
[383251232,1756894034996,-9399.82537377,0.00013398,2]
[383251233,1756894035173,-10000.01,0.00013398,2]
[383251234,1756894035456,-10000.01,0.00013398,2]
[383251235,1756894035622,-10000.01,0.00013398,2]
[383251236,1756894035754,-10000.01,0.00013398,2]
[383251237,1756894035916,-10000.01,0.00013398,2]
[383251238,1756894036041,-10000.01,0.00013398,2]
[383251239,1756894036158,-10000.01,0.00013398,2]
[383251240,1756894040181,-10000.01,0.00013398,2]
[383251241,1756894040303,-10000.01,0.00013398,2]
[383251242,1756894040465,-10000.01,0.00013398,2]
[383251243,1756894040663,-10000.01,0.00013398,2]
[383251244,1756894040819,-10000.01,0.00013398,2]
[383251245,1756894040945,-10000.01,0.00013398,2]
[383251248,1756894041061,-10000.01,0.00013398,2]
[383251249,1756894041176,-10000.01,0.00013398,2]
[383251250,1756894041331,-10000.01,0.00013398,2]
[383251251,1756894041453,-10000.01,0.00013398,2]
[383251264,1756894081192,1595.79873292,0.00013298,2]
[383251265,1756894082693,-10000.01,0.00013398,2]
[383251266,1756894082803,-10000.01,0.00013398,2]
[383251267,1756894082925,-10000.01,0.00013398,2]
[383251268,1756894083083,-10000.01,0.00013398,2]
[383251269,1756894083256,-10000.01,0.00013398,2]
[383251270,1756894083452,-10000.01,0.00013398,2]
[383251271,1756894083646,-2665.53966423,0.00013398,2]
[383251272,1756894083673,-203.92133502,0.00013398,2]
[383251283,1756894123985,151.0,0.00027397,120]
[383251284,1756894228154,4261.0880015,0.00013298,2]
[383251285,1756894228180,10000.01,0.00013298,2]
[383251286,1756894228203,10000.01,0.00013298,2]
[383251287,1756894228226,10000.01,0.00013298,2]
[383251288,1756894228249,10000.01,0.00013298,2]
[383251289,1756894228273,10000.01,0.00013298,2]
[383251290,1756894228296,10000.01,0.00013298,2]
[383251291,1756894228318,10000.01,0.00013298,2]
[383251292,1756894228341,10000.01,0.00013298,2]
[383251293,1756894228364,10000.01,0.00013298,2]
[383251294,1756894228393,190718.99535867,0.00013298,2]
[383251322,1756894231992,-741.26539315,0.00013575,2]
[383251324,1756894232003,-2413.20718164,0.00013575,2]
[383251326,1756894232014,-741.54415851,0.00013575,2]
[383251332,1756894232050,-2098.4216544,0.00013575,2]
[383251334,1756894232059,-445.0,0.00013645,2]
[383251336,1756894232069,-1200.0,0.00013671,2]
[383251337,1756894232079,-300.0,0.00013672,2]
[383251338,1756894232088,-300.0,0.00013672,2]
[383251339,1756894232097,-300.0,0.00013672,2]
[383251340,1756894232107,-296.0,0.00013672,2]
[383251341,1756894232117,-620.5471961,0.00013673,2]
[383251342,1756894232126,-500.0,0.00013673,2]
[383251344,1756894232135,-500.0,0.00013673,2]
[383251345,1756894232144,-500.0,0.00013673,2]
[383251347,1756894232153,-511.8682518,0.00013673,2]
[383251349,1756894232163,-500.0,0.00013673,2]
[383251351,1756894232172,-262.77935635,0.00013673,2]
[383251353,1756894232181,-500.0,0.00013673,2]
[383251355,1756894232191,-500.0,0.00013673,2]
[383251357,1756894232200,-106.18826888,0.00013673,2]
[383251408,1756894238000,-393.81173112,0.00013673,2]
[383251410,1756894238009,-500.0,0.00013673,2]
[383251412,1756894238019,-500.0,0.00013673,2]
[383251414,1756894238029,-500.0,0.00013673,2]
[383251416,1756894238038,-297.86985904,0.00013673,2]
[383251418,1756894238047,-500.0,0.00013673,2]
[383251421,1756894238056,-500.0,0.00013673,2]
[383251424,1756894238066,-502.70008143,0.00013673,2]
[383251426,1756894238075,-98.09858382,0.00013673,2]
[383251428,1756894238086,-401.90141618,0.00013673,2]
[383251430,1756894238095,-500.0,0.00013697,2]
[383251432,1756894238105,-374.45593055,0.00013697,2]
[383251434,1756894238115,-500.0,0.00013697,2]
[383251436,1756894238124,-500.0,0.00013697,2]
[383251438,1756894238133,-500.0,0.00013697,2]
[383251440,1756894238143,-500.0,0.00013697,2]
[383251442,1756894238152,-500.0,0.00013697,2]
[383251444,1756894238161,-500.0,0.00013697,2]
[383251446,1756894238171,-500.0,0.00013697,2]
[383251448,1756894238181,-500.0,0.00013697,2]
[383251451,1756894238190,-500.0,0.00013697,2]
[383251453,1756894238200,-500.0,0.00013697,2]
[383251455,1756894238210,-66.68921917,0.00013697,2]
[383251457,1756894238221,-277.80816965,0.00013697,2]
[383251459,1756894238231,-23.9035631,0.00013697,2]
[383251461,1756894238243,-476.0964369,0.00013697,2]
[383251463,1756894238253,-500.0,0.00013697,2]
[383251465,1756894238263,-280.0,0.00013697,2]
[383251467,1756894238272,-500.0,0.00013697,2]
[383251469,1756894238282,-601.45,0.00013697,2]
[383251471,1756894238292,-500.0,0.00013697,2]
[383251473,1756894238301,-500.0,0.00013697,2]
[383251475,1756894238311,-500.0,0.00013697,2]
[383251491,1756894238456,-500.0,0.00013697,2]
[383251493,1756894238469,-500.0,0.00013697,2]
[383251495,1756894238479,-609.34947105,0.00013697,2]
[383251497,1756894238488,-500.0,0.00013697,2]
[383251500,1756894238499,-500.0,0.00013697,2]
[383251502,1756894238508,-416.23514342,0.00013697,2]
[383251504,1756894238517,-310.07314519,0.00013697,2]